[Event "1000GM Spring Break Schev-F 2024"]
[Site "San Jose"]
[Date "2024.04.07"]
[Round "3.2"]
[White "Penagalapati, Abhinav"]
[Black "Dominguez Aguilar, Guillermo"]
[Result "0-1"]
[ECO "A34"]
[WhiteElo "2098"]
[BlackElo "2285"]
[Annotator "RC"]
[PlyCount "68"]
[EventDate "2024.03.28"]
[EventType "schev"]
[EventCountry "USA"]
[SourceTitle "playchess.com"]
[Source "ChessBase"]
[SourceQuality "1"]
[TimeControl "5400+30"]

1. Nf3 {[%emt 0:00:30]} Nf6 {[%emt 0:00:30]} 2. c4 {[%emt 0:00:30]} g6 {[%emt 0:00:30]} 3. Nc3 {[%emt 0:00:30]} c5 {[%emt 0:00:30]} 4. g3 {[%emt 0:00:30]} Bg7 {[%emt 0:00:30]} 5. Bg2 {[%emt 0:00:30]} O-O {[%emt 0:00:30]} 6. O-O {[%emt 0:00:30]} d5 {[%emt 0:00:30]} 7. cxd5 {[%emt 0:00:30]} Nxd5 {[%emt 0:00:30]} 8. Qb3 {[%emt 0:00:30]} Nb4 {[%emt 0:00:30]} 9. a3 {[%emt 0:00:30]} Be6 {[%emt 0:00:30]} 10. Qa4 {[%emt 0:00:30]} Bd7 {[%emt 0:00:30]} 11. Qb3 {[%emt 0:00:30]} Qa5 {[%emt 0:00:30]} 12. axb4 {[%emt 0:00:30]} Qxa1 {[%emt 0:00:30]} 13. bxc5 {[%emt 0:00:30]} Nc6 {[%emt 0:00:30]} 14. d4 {[%emt 0:00:30]} Qa6 {[%emt 0:00:30]} 15. Rd1 {[%emt 0:00:30]} b6 {[%emt 0:00:30]} 16. Nd5 {[%emt 0:00:30]} Rab8 {[%emt 0:22:19]} 17. Qe3 {[%emt 0:39:54]} bxc5 {[%emt 0:00:30]} 18. dxc5 {[%emt 0:00:30]} Qa4 {[%emt 0:00:30]} 19. Nc3 {[%emt 0:00:30]} Bxc3 {[%emt 0:00:30]} 20. Rxd7 {[%emt 0:00:30]} Bxb2 {[%emt 0:00:30]} 21. Bxb2 {[%emt 0:00:30]} Rxb2 {[%emt 0:00:30]} 22. h4 {[%emt 0:00:30]} Rc2 {[%emt 0:00:30]} 23. Rc7 {[%emt 0:00:30]} Qb5 {[%emt 0:00:30]} 24. Kh2 {[%emt 0:00:30]} Rxe2 {[%emt 0:00:30]} 25. Qh6 {[%emt 0:00:30]} Ne5 {[%emt 0:00:30]} 26. Nxe5 {[%emt 0:00:30]} Rxe5 {[%emt 0:00:30]} 27. c6 {[%emt 0:00:30]} Qb6 {[%emt 0:30:07]} 28. Rb7 {[%emt 0:25:52]} Qxf2 {[%emt 0:10:07]} 29. c7 {[%emt 0:00:11]} Re2 {[%emt 0:00:57]} 30. Qxf8+ {[%emt 0:00:06]} Kxf8 {[%emt 0:00:05]} 31. c8=Q+ {[%emt 0:00:06]} Kg7 {[%emt 0:00:03]} 32. Qc6 {[%emt 0:01:13]} Re3 {[%emt 0:01:31]} 33. Qc7 {[%emt 0:00:20]} e5 {[%emt 0:00:50]} 34. Kh1 {[%emt 0:03:12]} Qe1+ {[%emt 0:00:26]} 0-1

[Event "1000GM Spring Break Schev-F 2024"]
[Site "San Jose"]
[Date "2024.04.07"]
[Round "3.3"]
[White "Rodi, Luis Ernesto"]
[Black "Yang, Maxwell"]
[Result "1-0"]
[ECO "D85"]
[WhiteElo "2211"]
[BlackElo "1987"]
[Annotator "RC"]
[PlyCount "99"]
[EventDate "2024.03.28"]
[EventType "schev"]
[EventCountry "USA"]
[SourceTitle "playchess.com"]
[Source "ChessBase"]
[SourceQuality "1"]
[TimeControl "5400+30"]

1. d4 {[%emt 0:06:32]} Nf6 {[%emt 0:00:06]} 2. c4 {[%emt 0:00:06]} g6 {[%emt 0:00:04]} 3. Nc3 {[%emt 0:00:04]} d5 {[%emt 0:00:03]} 4. cxd5 {[%emt 0:00:06]} Nxd5 {[%emt 0:00:05]} 5. Bd2 {[%emt 0:00:04]} Nxc3 {[%emt 0:00:08]} 6. Bxc3 {[%emt 0:00:10]} Bg7 {[%emt 0:00:03]} 7. e4 {[%emt 0:00:08]} c5 {[%emt 0:00:04]} 8. d5 {[%emt 0:00:04]} Bxc3+ {[%emt 0:00:09]} 9. bxc3 {[%emt 1:27:46]} Qd6 {[%emt 0:00:12]} 10. Qd2 {[%emt 0:00:00]} O-O {[%emt 0:00:22]} 11. f4 {[%emt 0:00:00]} e6 {[%emt 0:00:12]} 12. Nf3 {[%emt 0:00:00]} exd5 {[%emt 0:00:15]} 13. Bc4 {[%emt 0:00:00]} Nc6 {[%emt 0:01:19]} 14. O-O {[%emt 0:00:00]} d4 {[%emt 0:02:44]} 15. Bd5 {[%emt 0:00:00]} Be6 {[%emt 0:09:57]} 16. Bxc6 {[%emt 0:00:00]} Qxc6 {[%emt 0:00:19]} 17. f5 {[%emt 0:00:00]} Qxe4 {[%emt 0:29:42]} 18. fxe6 {[%emt 0:00:00]} fxe6 {[%emt 0:06:32]} 19. cxd4 {[%emt 0:00:00]} Rad8 {[%emt 0:01:50]} 20. Rae1 {[%emt 0:00:00]} Qg4 {[%emt 0:03:16]} 21. Qe3 {[%emt 0:00:00]} cxd4 {[%emt 0:05:34]} 22. Qxe6+ {[%emt 0:00:00]} Qxe6 {[%emt 0:00:14]} 23. Rxe6 {[%emt 0:00:00]} Rd7 {[%emt 0:00:16]} 24. Rd1 {[%emt 0:00:00]} Rf4 {[%emt 0:00:20]} 25. Kf2 {[%emt 0:00:00]} d3 {[%emt 0:01:50]} 26. Rd2 {[%emt 0:00:00]} Rd5 {[%emt 0:02:17]} 27. Re7 {[%emt 0:00:00]} Rb4 {[%emt 0:00:40]} 28. Ke3 {[%emt 0:00:00]} a5 {[%emt 0:02:28]} 29. Rxd3 {[%emt 0:00:00]} Rxd3+ {[%emt 0:00:21]} 30. Kxd3 {[%emt 0:00:00]} Ra4 {[%emt 0:00:12]} 31. Re2 {[%emt 0:00:00]} b5 {[%emt 0:00:07]} 32. Ne5 {[%emt 0:00:00]} Kg7 {[%emt 0:01:27]} 33. Rb2 {[%emt 0:00:00]} Kf6 {[%emt 0:01:47]} 34. Nc6 {[%emt 0:00:00]} Ra3+ {[%emt 0:00:34]} 35. Kd4 {[%emt 0:00:00]} b4 {[%emt 0:01:15]} 36. Ne5 {[%emt 0:00:00]} a4 {[%emt 0:01:44]} 37. Nc4 {[%emt 0:00:00]} Rc3 {[%emt 0:00:14]} 38. Rxb4 {[%emt 0:00:00]} Rc2 {[%emt 0:00:05]} 39. Rb2 {[%emt 0:00:00]} Rc1 {[%emt 0:00:10]} 40. Nb6 {[%emt 0:00:00]} a3 {[%emt 0:00:06]} 41. Rf2+ {[%emt 0:00:00]} Kg5 {[%emt 0:00:07]} 42. Nc4 {[%emt 0:00:00]} Rd1+ {[%emt 0:00:05]} 43. Kc3 {[%emt 0:00:00]} Rh1 {[%emt 0:00:29]} 44. h3 {[%emt 0:00:00]} Kh4 {[%emt 0:00:03]} 45. Nxa3 {[%emt 0:00:00]} Kg3 {[%emt 0:00:04]} 46. Rd2 {[%emt 0:00:00]} Rg1 {[%emt 0:00:24]} 47. Nc2 {[%emt 0:00:00]} Rxg2 {[%emt 0:00:07]} 48. Rxg2+ {[%emt 0:00:00]} Kxg2 {[%emt 0:00:05]} 49. a4 {[%emt 0:00:00]} Kxh3 {[%emt 0:00:05]} 50. a5 {[%emt 0:00:00]} 1-0

[Event "1000GM Spring Break Schev-F 2024"]
[Site "San Jose"]
[Date "2024.04.07"]
[Round "4.1"]
[White "Dominguez Aguilar, Guillermo"]
[Black "Sethuraman, Anand"]
[Result "1-0"]
[ECO "B14"]
[WhiteElo "2285"]
[BlackElo "1749"]
[Annotator "RC"]
[PlyCount "103"]
[EventDate "2024.03.28"]
[EventType "schev"]
[EventCountry "USA"]
[SourceTitle "playchess.com"]
[Source "ChessBase"]
[SourceQuality "1"]
[TimeControl "5400+30"]

1. e4 {[%emt 0:00:04]} c6 {[%emt 0:00:05]} 2. c4 {[%emt 0:00:30]} d5 {[%emt 0:00:06]} 3. exd5 {[%emt 0:00:09]} cxd5 {[%emt 0:00:05]} 4. d4 {[%emt 0:00:04]} Nf6 {[%emt 0:00:08]} 5. Nc3 {[%emt 0:00:09]} Nc6 {[%emt 0:00:38]} 6. Nf3 {[%emt 0:00:13]} e6 {[%emt 0:01:22]} 7. c5 {[%emt 0:01:18]} Ne4 {[%emt 0:00:26]} 8. Bd3 {[%emt 0:00:35]} f5 {[%emt 0:00:53]} 9. O-O {[%emt 0:00:48]} Be7 {[%emt 0:00:14]} 10. Bb5 {[%emt 0:05:36]} Bd7 {[%emt 0:04:51]} 11. Bxc6 {[%emt 0:00:50]} Bxc6 {[%emt 0:00:29]} 12. Ne5 {[%emt 0:00:08]} O-O {[%emt 0:00:31]} 13. Ne2 {[%emt 0:00:38]} Bb5 {[%emt 0:09:59]} 14. f3 {[%emt 0:00:34]} Ng5 {[%emt 0:03:06]} 15. Re1 {[%emt 0:00:34]} Bf6 {[%emt 0:08:48]} 16. Nf4 {[%emt 0:01:59]} Re8 {[%emt 0:06:12]} 17. a4 {[%emt 0:02:28]} Bd7 {[%emt 0:03:39]} 18. Qb3 {[%emt 0:02:07]} Qc8 {[%emt 0:04:14]} 19. Nfd3 {[%emt 0:01:46]} Nf7 {[%emt 0:04:30]} 20. Bf4 {[%emt 0:00:36]} g5 {[%emt 0:04:35]} 21. Bg3 {[%emt 0:00:51]} Kg7 {[%emt 0:04:17]} 22. Qc3 {[%emt 0:01:16]} a5 {[%emt 0:03:45]} 23. Nxf7 {[%emt 0:00:52]} Kxf7 {[%emt 0:00:06]} 24. Be5 {[%emt 0:00:11]} Be7 {[%emt 0:00:31]} 25. Qd2 {[%emt 0:00:30]} Ra6 {[%emt 0:01:59]} 26. h4 {[%emt 0:00:23]} Rg8 {[%emt 0:05:17]} 27. hxg5 {[%emt 0:00:21]} Bxg5 {[%emt 0:00:24]} 28. Bf4 {[%emt 0:00:31]} Bf6 {[%emt 0:00:07]} 29. Qe3 {[%emt 0:00:06]} Rg6 {[%emt 0:04:22]} 30. Kf2 {[%emt 0:01:12]} Ra8 {[%emt 0:07:03]} 31. Rh1 {[%emt 0:00:46]} Kg8 {[%emt 0:00:16]} 32. Rh5 {[%emt 0:01:29]} Be8 {[%emt 0:06:22]} 33. Rah1 {[%emt 0:00:58]} Rg7 {[%emt 0:00:24]} 34. Rh6 {[%emt 0:00:33]} Bg6 {[%emt 0:00:18]} 35. Ne5 {[%emt 0:00:44]} Bxe5 {[%emt 0:01:45]} 36. Bxe5 {[%emt 0:00:13]} Qd7 {[%emt 0:00:16]} 37. Bxg7 {[%emt 0:00:17]} Qxg7 {[%emt 0:01:33]} 38. Qxe6+ {[%emt 0:00:23]} Bf7 {[%emt 0:02:43]} 39. Qe5 {[%emt 0:02:28]} Qxe5 {[%emt 0:00:35]} 40. dxe5 {[%emt 0:00:02]} Bg6 {[%emt 0:00:12]} 41. Rd1 {[%emt 0:01:07]} Rd8 {[%emt 0:00:13]} 42. Rh4 {[%emt 0:00:15]} Kf7 {[%emt 0:00:04]} 43. Ke3 {[%emt 0:00:35]} Ke6 {[%emt 0:00:07]} 44. Kd4 {[%emt 0:00:49]} b6 {[%emt 0:00:31]} 45. c6 {[%emt 0:00:24]} Rc8 {[%emt 0:00:57]} 46. Rc1 {[%emt 0:00:07]} Rc7 {[%emt 0:00:06]} 47. f4 {[%emt 0:00:15]} h5 {[%emt 0:00:15]} 48. Rh3 {[%emt 0:00:06]} Be8 {[%emt 0:00:44]} 49. Rb3 {[%emt 0:00:30]} Bxc6 {[%emt 0:01:07]} 50. Rxb6 {[%emt 0:00:09]} Kd7 {[%emt 0:00:04]} 51. e6+ {[%emt 0:00:27]} Kd6 {[%emt 0:00:12]} 52. e7 {[%emt 0:00:28]} 1-0

[Event "1000GM Spring Break Schev-F 2024"]
[Site "San Jose"]
[Date "2024.04.07"]
[Round "4.3"]
[White "Yang, Maxwell"]
[Black "Gongora Montes, Benjamin"]
[Result "1/2-1/2"]
[ECO "D41"]
[WhiteElo "1987"]
[BlackElo "2092"]
[Annotator "RC"]
[PlyCount "52"]
[EventDate "2024.03.28"]
[EventType "schev"]
[EventCountry "USA"]
[SourceTitle "playchess.com"]
[Source "ChessBase"]
[SourceQuality "1"]
[TimeControl "5400+30"]

1. d4 {[%emt 0:01:19]} d5 {[%emt 0:00:14]} 2. c4 {[%emt 0:00:05]} e6 {[%emt 0:07:23]} 3. Nc3 {[%emt 0:00:38]} Nf6 {[%emt 0:00:08]} 4. Nf3 {[%emt 0:00:12]} c5 {[%emt 0:00:08]} 5. cxd5 {[%emt 0:01:26]} Nxd5 {[%emt 0:02:55]} 6. e4 {[%emt 0:07:06]} Nxc3 {[%emt 0:00:10]} 7. bxc3 {[%emt 0:00:07]} cxd4 {[%emt 0:00:05]} 8. cxd4 {[%emt 0:00:08]} Bb4+ {[%emt 0:00:07]} 9. Bd2 {[%emt 0:00:07]} Bxd2+ {[%emt 0:00:13]} 10. Qxd2 {[%emt 0:00:08]} O-O {[%emt 0:00:14]} 11. Be2 {[%emt 0:01:13]} b6 {[%emt 0:00:58]} 12. O-O {[%emt 0:01:12]} Bb7 {[%emt 0:00:26]} 13. Qe3 {[%emt 0:03:04]} Nc6 {[%emt 0:01:18]} 14. Rac1 {[%emt 0:00:53]} Rc8 {[%emt 0:00:21]} 15. Rfd1 {[%emt 0:00:28]} Re8 {[%emt 0:06:08]} 16. Qf4 {[%emt 0:06:22]} Qf6 {[%emt 0:10:35]} 17. Qxf6 {[%emt 0:03:24]} gxf6 {[%emt 0:00:11]} 18. a3 {[%emt 0:05:13]} Ne7 {[%emt 0:03:37]} 19. Bd3 {[%emt 0:06:16]} Rxc1 {[%emt 0:03:38]} 20. Rxc1 {[%emt 0:00:08]} Rc8 {[%emt 0:00:09]} 21. Rxc8+ {[%emt 0:00:35]} Nxc8 {[%emt 0:00:30]} 22. Nd2 {[%emt 0:00:13]} Kf8 {[%emt 0:00:37]} 23. f3 {[%emt 0:00:49]} Ne7 {[%emt 0:07:15]} 24. Kf2 {[%emt 0:00:53]} f5 {[%emt 0:00:11]} 25. Ke3 {[%emt 0:03:38]} fxe4 {[%emt 0:00:22]} 26. fxe4 {[%emt 0:02:30]} Ng6 {[%emt 0:16:24]} 1/2-1/2

[Event "1000GM Spring Break Schev-F 2024"]
[Site "San Jose"]
[Date "2024.04.07"]
[Round "4.4"]
[White "Rodi, Luis Ernesto"]
[Black "Penagalapati, Abhinav"]
[Result "1-0"]
[ECO "B88"]
[WhiteElo "2211"]
[BlackElo "2098"]
[Annotator "RC"]
[PlyCount "93"]
[EventDate "2024.03.28"]
[EventType "schev"]
[EventCountry "USA"]
[SourceTitle "playchess.com"]
[Source "ChessBase"]
[SourceQuality "1"]
[TimeControl "5400+30"]

1. e4 {[%emt 0:00:31]} c5 {[%emt 0:00:17]} 2. Nf3 {[%emt 0:00:23]} d6 {[%emt 0:00:04]} 3. d4 {[%emt 0:00:07]} cxd4 {[%emt 0:00:02]} 4. Nxd4 {[%emt 0:00:08]} Nf6 {[%emt 1:32:07]} 5. Nc3 {[%emt 0:00:08]} Nc6 {[%emt 0:00:00]} 6. Bc4 {[%emt 0:00:10]} e6 {[%emt 0:00:00]} 7. Be3 {[%emt 0:00:07]} a6 {[%emt 0:00:00]} 8. Bb3 {[%emt 0:00:07]} Qc7 {[%emt 0:00:00]} 9. f4 {[%emt 0:00:12]} Be7 {[%emt 0:00:00]} 10. O-O {[%emt 0:03:58]} b5 {[%emt 0:00:00]} 11. a3 {[%emt 0:00:42]} Bb7 {[%emt 0:00:00]} 12. f5 {[%emt 0:03:03]} Nxd4 {[%emt 0:00:00]} 13. Qxd4 {[%emt 0:00:41]} e5 {[%emt 0:00:00]} 14. Qd3 {[%emt 0:00:08]} Rc8 {[%emt 0:00:00]} 15. Rac1 {[%emt 0:03:08]} Ng4 {[%emt 0:00:00]} 16. Bd5 {[%emt 0:08:43]} h6 {[%emt 0:00:00]} 17. Bxb7 {[%emt 0:05:42]} Qxb7 {[%emt 0:00:00]} 18. Rce1 {[%emt 0:00:20]} Nxe3 {[%emt 0:00:00]} 19. Rxe3 {[%emt 0:01:33]} Rc4 {[%emt 0:00:00]} 20. Nd5 {[%emt 0:01:06]} Bg5 {[%emt 0:00:00]} 21. Re2 {[%emt 0:01:15]} Rd4 {[%emt 0:00:00]} 22. Qf3 {[%emt 0:00:37]} Rxd5 {[%emt 0:00:00]} 23. exd5 {[%emt 0:00:31]} O-O {[%emt 0:00:00]} 24. c3 {[%emt 0:05:48]} Rc8 {[%emt 0:00:00]} 25. Rd1 {[%emt 0:00:11]} Rc5 {[%emt 0:00:00]} 26. g3 {[%emt 0:00:25]} a5 {[%emt 0:00:00]} 27. Qd3 {[%emt 0:03:52]} b4 {[%emt 0:00:00]} 28. axb4 {[%emt 0:01:33]} axb4 {[%emt 0:00:00]} 29. c4 {[%emt 0:02:11]} Ra5 {[%emt 0:00:00]} 30. Kg2 {[%emt 0:01:00]} Bd8 {[%emt 0:00:00]} 31. Qb3 {[%emt 0:03:24]} Bc7 {[%emt 0:00:00]} 32. Ree1 {[%emt 0:01:02]} Bb8 {[%emt 0:00:00]} 33. Ra1 {[%emt 0:01:08]} Qb6 {[%emt 0:00:00]} 34. Qf3 {[%emt 0:16:47]} Ba7 {[%emt 0:00:00]} 35. Kh3 {[%emt 0:04:50]} Qc7 {[%emt 0:00:00]} 36. Qf1 {[%emt 0:00:42]} Bd4 {[%emt 0:00:00]} 37. Rxa5 {[%emt 0:01:38]} Qxa5 {[%emt 0:00:00]} 38. Ra1 {[%emt 0:00:21]} Qd8 {[%emt 0:00:00]} 39. Ra4 {[%emt 0:02:15]} Bc5 {[%emt 0:00:00]} 40. b3 {[%emt 0:00:40]} e4 {[%emt 0:00:00]} 41. f6 {[%emt 0:01:39]} Qc8+ {[%emt 0:07:15]} 42. Kg2 {[%emt 0:00:18]} g5 {[%emt 0:00:01]} 43. h3 {[%emt 0:01:06]} Kh7 {[%emt 0:03:44]} 44. g4 {[%emt 0:00:33]} Kg8 {[%emt 0:00:58]} 45. Qa1 {[%emt 0:02:15]} Kh7 {[%emt 0:02:12]} 46. Ra8 {[%emt 0:01:02]} Qb7 {[%emt 0:02:29]} 47. Re8 {[%emt 0:00:54]} 1-0

[Event "1000GM Spring Break Schev-F 2024"]
[Site "San Jose"]
[Date "2024.04.07"]
[Round "4.5"]
[White "Varela Velazquez, Carlos Francisco"]
[Black "Jin, Austin"]
[Result "1-0"]
[ECO "E07"]
[WhiteElo "2084"]
[BlackElo "1966"]
[Annotator "RC"]
[PlyCount "83"]
[EventDate "2024.03.28"]
[EventType "schev"]
[EventCountry "USA"]
[SourceTitle "playchess.com"]
[Source "ChessBase"]
[SourceQuality "1"]
[TimeControl "5400+30"]

1. Nf3 {[%emt 0:03:40]} d5 {[%emt 0:00:11]} 2. g3 {[%emt 0:00:15]} Nf6 {[%emt 0:00:27]} 3. Bg2 {[%emt 0:00:18]} e6 {[%emt 0:00:07]} 4. O-O {[%emt 0:00:09]} Be7 {[%emt 0:00:09]} 5. c4 {[%emt 0:00:03]} O-O {[%emt 0:00:13]} 6. b3 {[%emt 0:00:07]} c6 {[%emt 0:00:16]} 7. Bb2 {[%emt 0:00:04]} b6 {[%emt 0:00:09]} 8. d4 {[%emt 0:00:14]} Bb7 {[%emt 0:00:44]} 9. Nc3 {[%emt 0:00:06]} Nbd7 {[%emt 0:00:39]} 10. Qd3 {[%emt 0:00:16]} c5 {[%emt 0:06:12]} 11. cxd5 {[%emt 0:06:49]} exd5 {[%emt 0:02:19]} 12. Rac1 {[%emt 0:00:21]} Rc8 {[%emt 0:03:54]} 13. Rfd1 {[%emt 0:04:54]} Re8 {[%emt 0:09:52]} 14. dxc5 {[%emt 0:11:01]} bxc5 {[%emt 0:03:57]} 15. Na4 {[%emt 0:22:46]} Bf8 {[%emt 0:08:23]} 16. e3 {[%emt 0:03:26]} Nb6 {[%emt 0:12:08]} 17. Nxb6 {[%emt 0:01:48]} axb6 {[%emt 0:01:31]} 18. Ng5 {[%emt 0:03:18]} Ne4 {[%emt 0:02:20]} 19. Nh3 {[%emt 0:02:36]} Qe7 {[%emt 0:04:40]} 20. Nf4 {[%emt 0:01:16]} Red8 {[%emt 0:00:36]} 21. Qb1 {[%emt 0:00:36]} Rc7 {[%emt 0:03:50]} 22. Rd3 {[%emt 0:01:19]} Rcd7 {[%emt 0:01:29]} 23. Rcd1 {[%emt 0:00:11]} b5 {[%emt 0:11:48]} 24. h4 {[%emt 0:02:37]} c4 {[%emt 0:04:23]} 25. Rd4 {[%emt 0:01:16]} Nf6 {[%emt 0:00:54]} 26. Qa1 {[%emt 0:08:03]} h6 {[%emt 0:10:21]} 27. R4d2 {[%emt 0:19:12]} Ne4 {[%emt 0:02:54]} 28. Rd4 {[%emt 0:01:47]} Nf6 {[%emt 0:00:13]} 29. Qb1 {[%emt 0:01:42]} b4 {[%emt 0:03:25]} 30. bxc4 {[%emt 0:00:50]} dxc4 {[%emt 0:00:22]} 31. Bxb7 {[%emt 0:00:38]} Rxd4 {[%emt 0:00:11]} 32. Bxd4 {[%emt 0:00:04]} Qxb7 {[%emt 0:00:21]} 33. Bxf6 {[%emt 0:00:29]} Rxd1+ {[%emt 0:00:14]} 34. Qxd1 {[%emt 0:00:01]} gxf6 {[%emt 0:00:05]} 35. Nd5 {[%emt 0:00:28]} Bg7 {[%emt 0:02:25]} 36. Qd4 {[%emt 0:01:39]} b3 {[%emt 0:06:48]} 37. axb3 {[%emt 0:00:06]} cxb3 {[%emt 0:00:00]} 38. Qe4 {[%emt 0:00:03]} Kh8 {[%emt 0:00:00]} 39. Qe8+ {[%emt 0:00:35]} Kh7 {[%emt 0:00:00]} 40. Ne7 {[%emt 0:00:09]} h5 {[%emt 0:00:00]} 41. Qg8+ {[%emt 0:00:06]} Kh6 {[%emt 0:02:30]} 42. Qxf7 {[%emt 0:06:12]} 1-0

[Event "1000GM Spring Break Schev-F 2024"]
[Site "San Jose"]
[Date "2024.04.07"]
[Round "5.1"]
[White "Sethuraman, Anand"]
[Black "Rodi, Luis Ernesto"]
[Result "0-1"]
[ECO "A06"]
[WhiteElo "1749"]
[BlackElo "2211"]
[Annotator "RC"]
[PlyCount "94"]
[EventDate "2024.03.28"]
[EventType "schev"]
[EventCountry "USA"]
[SourceTitle "playchess.com"]
[Source "ChessBase"]
[SourceQuality "1"]
[TimeControl "5400+30"]

1. Nf3 {[%emt 0:00:04]} d5 {[%emt 0:05:34]} 2. b3 {[%emt 0:00:08]} Bg4 {[%emt 0:00:04]} 3. Bb2 {[%emt 0:02:29]} Nd7 {[%emt 0:00:58]} 4. e3 {[%emt 0:00:33]} e6 {[%emt 0:00:12]} 5. Be2 {[%emt 0:00:19]} Ngf6 {[%emt 0:00:07]} 6. O-O {[%emt 0:00:08]} Bd6 {[%emt 0:00:06]} 7. d3 {[%emt 0:01:09]} Qe7 {[%emt 0:00:13]} 8. c4 {[%emt 0:01:30]} c6 {[%emt 0:00:07]} 9. Nc3 {[%emt 0:00:52]} O-O {[%emt 0:00:29]} 10. d4 {[%emt 0:11:16]} Ne4 {[%emt 0:05:10]} 11. Nd2 {[%emt 0:15:34]} Bxe2 {[%emt 0:05:48]} 12. Qxe2 {[%emt 0:00:19]} f5 {[%emt 0:00:08]} 13. Ncxe4 {[%emt 0:11:55]} fxe4 {[%emt 0:00:21]} 14. f3 {[%emt 0:00:22]} Qh4 {[%emt 0:06:57]} 15. g3 {[%emt 0:03:16]} exf3 {[%emt 0:00:22]} 16. Rxf3 {[%emt 0:00:27]} Qh6 {[%emt 0:03:25]} 17. Raf1 {[%emt 0:00:34]} Rxf3 {[%emt 0:00:45]} 18. Rxf3 {[%emt 0:00:32]} Bb4 {[%emt 0:00:31]} 19. Nf1 {[%emt 0:04:21]} Nf6 {[%emt 0:00:59]} 20. a3 {[%emt 0:00:26]} Bd6 {[%emt 0:00:22]} 21. Nd2 {[%emt 0:00:21]} Qg6 {[%emt 0:00:07]} 22. e4 {[%emt 0:05:44]} dxe4 {[%emt 0:00:36]} 23. Re3 {[%emt 0:00:16]} Bf4 {[%emt 0:00:34]} 24. Rc3 {[%emt 0:02:06]} Bxd2 {[%emt 0:02:32]} 25. Qxd2 {[%emt 0:00:06]} Rf8 {[%emt 0:00:13]} 26. Rc1 {[%emt 0:03:48]} Ng4 {[%emt 0:00:39]} 27. Rf1 {[%emt 0:00:14]} Rxf1+ {[%emt 0:01:16]} 28. Kxf1 {[%emt 0:00:02]} Qf5+ {[%emt 0:00:15]} 29. Qf4 {[%emt 0:00:52]} Nxh2+ {[%emt 0:01:00]} 30. Kg2 {[%emt 0:00:09]} Qxf4 {[%emt 0:00:12]} 31. gxf4 {[%emt 0:00:02]} Ng4 {[%emt 0:00:16]} 32. Bc1 {[%emt 0:01:01]} Kf7 {[%emt 0:00:10]} 33. Kg3 {[%emt 0:00:15]} h5 {[%emt 0:00:07]} 34. Kh4 {[%emt 0:00:16]} Kg6 {[%emt 0:00:07]} 35. b4 {[%emt 0:00:17]} e3 {[%emt 0:00:25]} 36. Kg3 {[%emt 0:00:20]} e2 {[%emt 0:00:13]} 37. Bd2 {[%emt 0:00:06]} Ne3 {[%emt 0:00:38]} 38. Kf2 {[%emt 0:00:40]} Nxc4 {[%emt 0:00:06]} 39. Bc1 {[%emt 0:00:03]} Kf5 {[%emt 0:00:17]} 40. Kxe2 {[%emt 0:00:05]} Ke4 {[%emt 0:00:05]} 41. a4 {[%emt 0:00:58]} g6 {[%emt 0:00:15]} 42. b5 {[%emt 0:01:00]} cxb5 {[%emt 0:00:08]} 43. axb5 {[%emt 0:00:07]} a5 {[%emt 0:00:10]} 44. bxa6 {[%emt 0:00:35]} bxa6 {[%emt 0:00:03]} 45. Kf2 {[%emt 0:01:52]} a5 {[%emt 0:00:23]} 46. Kg3 {[%emt 0:00:07]} a4 {[%emt 0:00:18]} 47. Kh4 {[%emt 0:00:39]} Kf5 {[%emt 0:00:08]} 0-1

[Event "1000GM Spring Break Schev-F 2024"]
[Site "San Jose"]
[Date "2024.04.07"]
[Round "5.3"]
[White "Solis Castro, Angel Alejan"]
[Black "Yang, Maxwell"]
[Result "1/2-1/2"]
[ECO "D87"]
[WhiteElo "2066"]
[BlackElo "1987"]
[Annotator "RC"]
[PlyCount "72"]
[EventDate "2024.03.28"]
[EventType "schev"]
[EventCountry "USA"]
[SourceTitle "playchess.com"]
[Source "ChessBase"]
[SourceQuality "1"]
[TimeControl "5400+30"]

1. c4 {[%emt 0:00:22]} Nf6 {[%emt 0:00:29]} 2. Nc3 {[%emt 0:00:11]} d5 {[%emt 0:00:05]} 3. cxd5 {[%emt 0:00:14]} Nxd5 {[%emt 0:00:04]} 4. e4 {[%emt 0:00:08]} Nxc3 {[%emt 0:00:12]} 5. bxc3 {[%emt 0:00:11]} g6 {[%emt 0:00:04]} 6. d4 {[%emt 0:00:39]} Bg7 {[%emt 0:00:10]} 7. Bc4 {[%emt 0:00:19]} c5 {[%emt 0:00:34]} 8. Ne2 {[%emt 0:00:07]} O-O {[%emt 0:00:26]} 9. O-O {[%emt 0:00:07]} Nc6 {[%emt 0:00:04]} 10. Be3 {[%emt 0:00:07]} b6 {[%emt 0:00:05]} 11. dxc5 {[%emt 0:00:47]} Qc7 {[%emt 0:00:16]} 12. cxb6 {[%emt 0:00:44]} axb6 {[%emt 0:00:09]} 13. Bb3 {[%emt 0:00:39]} Ba6 {[%emt 0:01:54]} 14. Qc2 {[%emt 0:02:45]} Na5 {[%emt 0:01:58]} 15. Rab1 {[%emt 0:05:40]} Nxb3 {[%emt 0:03:56]} 16. axb3 {[%emt 0:00:14]} Bxe2 {[%emt 0:00:21]} 17. Qxe2 {[%emt 0:00:11]} Qc6 {[%emt 0:23:37]} 18. c4 {[%emt 0:04:42]} Qxe4 {[%emt 0:00:24]} 19. Rfe1 {[%emt 0:00:08]} Qc6 {[%emt 0:03:07]} 20. Bg5 {[%emt 0:00:39]} e6 {[%emt 0:00:14]} 21. Red1 {[%emt 0:01:57]} h6 {[%emt 0:01:14]} 22. Be7 {[%emt 0:04:22]} Rfe8 {[%emt 0:00:17]} 23. Bb4 {[%emt 0:00:16]} Red8 {[%emt 0:00:46]} 24. h4 {[%emt 0:02:21]} Bf6 {[%emt 0:06:12]} 25. Qe3 {[%emt 0:02:07]} Bg7 {[%emt 0:05:11]} 26. h5 {[%emt 0:00:55]} g5 {[%emt 0:00:34]} 27. Be7 {[%emt 0:04:37]} Re8 {[%emt 0:00:50]} 28. Bb4 {[%emt 0:02:57]} Red8 {[%emt 0:00:40]} 29. Bc3 {[%emt 0:00:37]} Qc5 {[%emt 0:09:20]} 30. Qf3 {[%emt 0:02:36]} e5 {[%emt 0:11:50]} 31. Qe4 {[%emt 0:05:49]} b5 {[%emt 0:01:59]} 32. Ra1 {[%emt 0:01:49]} Rxa1 {[%emt 0:09:26]} 33. Rxa1 {[%emt 0:00:17]} bxc4 {[%emt 0:03:17]} 34. bxc4 {[%emt 0:00:28]} f5 {[%emt 0:00:25]} 35. Qxf5 {[%emt 0:05:41]} Qxc4 {[%emt 0:00:17]} 36. Be1 {[%emt 0:04:51]} Qf7 {[%emt 0:00:23]} 1/2-1/2